[Event "Sunway Sitges Chess Festival"]
[Date "2024.12.21"]
[White "Velten, Paul"]
[Black "Lyutsinger, Iren"]
[WhiteElo "2501"]
[BlackElo "2150"]
[Round "4.24"]
[Result "1-0"]
[TimeControl "40/5400+30:1800+30"]

1. e4 {[%clk 1:30:44]} 1... c5 {[%clk 1:30:44]} 2. Nc3 {[%clk 1:30:29]} 2... d6
{[%clk 1:30:38]} 3. Nge2 {[%clk 1:30:35]} 3... g6 {[%clk 1:30:23]} 4. d4 {[%clk
1:26:29]} 4... cxd4 {[%clk 1:30:46]} 5. Nxd4 {[%clk 1:26:17]} 5... Bg7 {[%clk
1:30:06]} 6. Be3 {[%clk 1:25:41]} 6... Nf6 {[%clk 1:30:16]} 7. f3 {[%clk
1:25:39]} 7... Nc6 {[%clk 1:24:49]} 8. Qd2 {[%clk 1:25:20]} 8... O-O {[%clk
1:21:54]} 9. g4 {[%clk 1:23:28]} 9... Bd7 {[%clk 0:53:29]} 10. h4 {[%clk
1:15:01]} 10... h5 {[%clk 0:52:22]} 11. O-O-O {[%clk 1:09:21]} 11... Qa5 {[%clk
0:49:28]} 12. Nb3 {[%clk 1:08:19]} 12... Qc7 {[%clk 0:47:31]} 13. Nd5 {[%clk
1:06:17]} 13... Nxd5 {[%clk 0:45:41]} 14. exd5 {[%clk 1:06:40]} 14... Ne5 {[%clk
0:45:09]} 15. gxh5 {[%clk 1:06:49]} 15... Bf5 {[%clk 0:40:02]} 16. Nd4 {[%clk
1:06:08]} 16... Rfc8 {[%clk 0:38:31]} 17. Nxf5 {[%clk 1:04:43]} 17... Nxf3
{[%clk 0:37:45]} 18. Qd3 {[%clk 1:03:37]} 18... gxf5 {[%clk 0:20:45]} 19. Kb1
{[%clk 0:57:59]} 19... Qa5 {[%clk 0:15:45]} 20. Bc1 {[%clk 0:54:26]} 20... Ne1
{[%clk 0:13:53]} 21. Qg3 {[%clk 0:52:02]} 21... Nxc2 {[%clk 0:08:18]} 22. h6
{[%clk 0:50:49]} 22... Na3+ {[%clk 0:08:04]} 23. Qxa3 {[%clk 0:50:30]} 23... Qc7
{[%clk 0:07:12]} 24. Bd3 {[%clk 0:50:33]} 1-0

[Variant "Standard"]
[Site "Europe Echecs"]

[Event "Sunway Sitges Chess Festival"]
[Date "2024.12.21"]
[White "Girel, Joseph"]
[Black "Montes Molina, Ivan"]
[WhiteElo "2494"]
[BlackElo "2144"]
[Round "4.25"]
[Result "1-0"]
[TimeControl "40/5400+30:1800+30"]

1. d4 {[%clk 1:30:48]} 1... Nf6 {[%clk 1:30:52]} 2. c4 {[%clk 1:30:56]} 2... g6
{[%clk 1:31:16]} 3. Nc3 {[%clk 1:31:06]} 3... Bg7 {[%clk 1:31:39]} 4. e4 {[%clk
1:31:21]} 4... d6 {[%clk 1:32:04]} 5. Be2 {[%clk 1:31:24]} 5... O-O {[%clk
1:32:25]} 6. Be3 {[%clk 1:31:47]} 6... Nc6 {[%clk 1:31:49]} 7. d5 {[%clk
1:31:55]} 7... Ne5 {[%clk 1:32:12]} 8. Rc1 {[%clk 1:32:09]} 8... e6 {[%clk
1:27:35]} 9. f4 {[%clk 1:31:47]} 9... Ned7 {[%clk 1:26:23]} 10. dxe6 {[%clk
1:32:08]} 10... fxe6 {[%clk 1:26:45]} 11. Nh3 {[%clk 1:32:14]} 11... b6 {[%clk
1:24:15]} 12. O-O {[%clk 1:23:15]} 12... Bb7 {[%clk 1:19:00]} 13. Qc2 {[%clk
1:22:54]} 13... Nc5 {[%clk 1:11:18]} 14. Bf3 {[%clk 1:19:58]} 14... e5 {[%clk
1:06:57]} 15. f5 {[%clk 1:15:58]} 15... gxf5 {[%clk 1:04:11]} 16. exf5 {[%clk
1:15:04]} 16... Bxf3 {[%clk 1:00:25]} 17. Rxf3 {[%clk 1:15:10]} 17... e4 {[%clk
0:50:14]} 18. Rg3 {[%clk 1:14:55]} 18... Nh5 {[%clk 0:47:36]} 19. Rg5 {[%clk
1:14:20]} 19... Qe8 {[%clk 0:47:22]} 20. Nd5 {[%clk 1:04:34]} 20... h6 {[%clk
0:46:35]} 21. Nxc7 {[%clk 1:03:17]} 21... Qf7 {[%clk 0:46:03]} 22. Rxg7+ {[%clk
1:00:01]} 22... Qxg7 {[%clk 0:41:57]} 23. Nxa8 {[%clk 0:59:39]} 23... Nd3 {[%clk
0:41:29]} 24. Rf1 {[%clk 0:57:35]} 24... Rxa8 {[%clk 0:41:41]} 25. Qe2 {[%clk
0:57:22]} 25... Nf6 {[%clk 0:41:22]} 26. Bd4 {[%clk 0:52:04]} 26... Re8 {[%clk
0:37:11]} 27. Nf4 {[%clk 0:55:49]} 27... Nxf4 {[%clk 0:35:42]} 28. Rxf4 {[%clk
0:56:16]} 28... Qg5 {[%clk 0:35:53]} 29. g3 {[%clk 0:55:29]} 29... Kh7 {[%clk
0:34:26]} 30. Bxf6 {[%clk 0:53:40]} 30... Qxf6 {[%clk 0:34:50]} 31. Rxe4 {[%clk
0:54:02]} 31... Rxe4 {[%clk 0:34:51]} 32. Qxe4 {[%clk 0:54:21]} 32... Qxb2
{[%clk 0:34:29]} 33. f6+ {[%clk 0:54:45]} 1-0

[Variant "Standard"]
[Site "Europe Echecs"]

[Event "Sunway Sitges Chess Festival"]
[Date "2024.12.21"]
[White "Atanasov, Anthony"]
[Black "Hristodorescu, Daniel"]
[WhiteElo "2415"]
[BlackElo "2138"]
[Round "4.26"]
[Result "1-0"]
[TimeControl "40/5400+30:1800+30"]

1. e4 e5 2. Nf3 Nc6 3. Bb5 a6 4. Ba4 Nf6 5. Nc3 d6 6. Bxc6+ bxc6 7. d4 Nd7 8.
O-O Be7 9. b3 O-O 10. Bb2 Bf6 11. Na4 Re8 12. Re1 exd4 13. Bxd4 Bb7 14. Nc3 Bxd4
15. Qxd4 Qe7 16. Re3 Ne5 17. Nxe5 Qxe5 18. Qxe5 Rxe5 19. f4 Re7 20. Rae1 Rae8
21. e5 Bc8 22. Kf2 Kf8 23. exd6 Rxe3 24. Rxe3 cxd6 25. Ne4 Rd8 26. h3 h6 27. Ke2
a5 28. Kd2 f5 29. Nc3 Kf7 30. Ne2 c5 31. g3 Be6 32. Nc3 g5 33. Nb5 Rd7 34. h4
gxf4 35. gxf4 Kf6 36. Rd3 d5 37. Rc3 c4 38. Nd4 Rg7 39. Re3 Bc8 40. Re8 Rg2+ 41.
Ke3 Bd7 42. Re5 cxb3 43. axb3 Rg3+ 44. Ke2 Rg4 45. Rxd5 Ke7 46. Nxf5+ Ke6 47.
Rd6+ Kxf5 48. Rxd7 Rxh4 49. Rd5+ Ke4 50. Re5+ Kxf4 51. Rxa5 Rh3 52. b4 Ke4 53.
Rc5 Rh2+ 54. Kf1 h5 55. b5 h4 56. Rc4+ Ke3 57. b6 h3 58. Rc3+ Kd2 59. b7 Rh1+
60. Kf2 h2 61. Rd3+ Kxc2 62. b8=Q Rf1+ 63. Kg3 1-0

[Variant "Standard"]
[Site "Europe Echecs"]

[Event "Sunway Sitges Chess Festival"]
[Date "2024.12.21"]
[White "Liu, Xiangyi"]
[Black "Lopez Garcia, Miguel Angel"]
[WhiteElo "2372"]
[BlackElo "2127"]
[Round "4.27"]
[Result "1-0"]
[TimeControl "40/5400+30:1800+30"]

1. Nf3 {[%clk 1:20:34]} 1... Nf6 {[%clk 1:30:27]} 2. d4 {[%clk 1:20:57]} 2... d5
{[%clk 1:28:32]} 3. g3 {[%clk 1:21:20]} 3... c5 {[%clk 1:28:56]} 4. Bg2 {[%clk
1:21:45]} 4... cxd4 {[%clk 1:29:22]} 5. Nxd4 {[%clk 1:22:12]} 5... e5 {[%clk
1:29:43]} 6. Nb3 {[%clk 1:22:38]} 6... h6 {[%clk 1:27:55]} 7. c4 {[%clk
1:21:41]} 7... d4 {[%clk 1:25:06]} 8. O-O {[%clk 1:21:32]} 8... Nc6 {[%clk
1:18:34]} 9. f4 {[%clk 1:06:53]} 9... e4 {[%clk 1:14:22]} 10. f5 {[%clk
1:07:00]} 10... g6 {[%clk 1:09:54]} 11. e3 {[%clk 0:58:51]} 11... d3 {[%clk
1:04:48]} 12. fxg6 {[%clk 0:57:10]} 12... fxg6 {[%clk 1:04:36]} 13. Nc3 {[%clk
0:52:57]} 13... Bf5 {[%clk 1:01:25]} 14. Nd2 {[%clk 0:52:22]} 14... Bg7 {[%clk
0:47:09]} 15. Ndxe4 {[%clk 0:41:01]} 15... Ng4 {[%clk 0:40:26]} 16. Nd5 {[%clk
0:33:55]} 16... Nge5 {[%clk 0:39:10]} 17. Rxf5 {[%clk 0:33:00]} 17... gxf5
{[%clk 0:38:57]} 18. Qh5+ {[%clk 0:32:00]} 18... Nf7 {[%clk 0:36:25]} 19. Qxf5
{[%clk 0:22:14]} 19... O-O {[%clk 0:32:39]} 20. Nef6+ {[%clk 0:18:34]} 20...
Bxf6 {[%clk 0:33:01]} 21. Nxf6+ {[%clk 0:18:59]} 21... Kg7 {[%clk 0:33:25]} 22.
Be4 {[%clk 0:13:51]} 22... Rh8 {[%clk 0:31:32]} 23. Qg6+ {[%clk 0:14:00]} 23...
Kf8 {[%clk 0:31:53]} 24. Bd2 {[%clk 0:14:23]} 24... Qd6 {[%clk 0:28:20]} 25.
Bxc6 {[%clk 0:09:16]} 25... bxc6 {[%clk 0:27:30]} 26. Rf1 {[%clk 0:09:42]} 26...
Rd8 {[%clk 0:26:23]} 27. Nh7+ {[%clk 0:10:07]} 27... Rxh7 {[%clk 0:26:43]} 28.
Qxh7 {[%clk 0:10:33]} 28... Rd7 {[%clk 0:27:03]} 29. Qh8+ {[%clk 0:10:45]} 29...
Ke7 {[%clk 0:27:24]} 30. Qg8 {[%clk 0:11:09]} 1-0

[Variant "Standard"]
[Site "Europe Echecs"]

[Event "Sunway Sitges Chess Festival"]
[Date "2024.12.21"]
[White "Villar Reymundo, Juan Antonio"]
[Black "Tan, Jun Ying"]
[WhiteElo "2147"]
[BlackElo "2357"]
[Round "4.28"]
[Result "0-1"]
[TimeControl "40/5400+30:1800+30"]

1. e4 {[%clk 1:30:56]} 1... c5 {[%clk 1:30:46]} 2. Nf3 {[%clk 1:31:21]} 2... d6
{[%clk 1:31:01]} 3. Bb5+ {[%clk 1:31:37]} 3... Nd7 {[%clk 1:31:13]} 4. O-O
{[%clk 1:31:19]} 4... a6 {[%clk 1:31:26]} 5. Bd3 {[%clk 1:31:41]} 5... Ngf6
{[%clk 1:30:52]} 6. c3 {[%clk 1:32:01]} 6... b5 {[%clk 1:26:15]} 7. Bc2 {[%clk
1:32:06]} 7... c4 {[%clk 1:24:03]} 8. a4 {[%clk 1:13:47]} 8... Bb7 {[%clk
1:23:48]} 9. Re1 {[%clk 1:13:07]} 9... e6 {[%clk 1:23:23]} 10. axb5 {[%clk
1:11:12]} 10... axb5 {[%clk 1:23:44]} 11. Rxa8 {[%clk 1:11:30]} 11... Qxa8
{[%clk 1:24:01]} 12. Na3 {[%clk 1:11:50]} 12... Bxe4 {[%clk 1:22:25]} 13. Bxe4
{[%clk 1:12:02]} 13... Nxe4 {[%clk 1:22:51]} 14. Nxb5 {[%clk 1:12:26]} 14... Qb7
{[%clk 1:21:57]} 15. Qa4 {[%clk 0:56:27]} 15... d5 {[%clk 1:16:46]} 16. d4
{[%clk 0:56:36]} 16... cxd3 {[%clk 1:04:28]} 17. Bf4 {[%clk 0:54:05]} 17... Bc5
{[%clk 1:02:45]} 18. Nc7+ {[%clk 0:35:24]} 18... Ke7 {[%clk 1:00:00]} 19. Nd4
{[%clk 0:33:53]} 19... Rc8 {[%clk 0:51:53]} 20. Nc6+ {[%clk 0:20:04]} 20... Kf8
{[%clk 0:50:34]} 21. Rxe4 {[%clk 0:19:44]} 21... Qxb2 {[%clk 0:46:33]} 22. h4
{[%clk 0:19:08]} 22... Qxf2+ {[%clk 0:46:39]} 0-1

[Variant "Standard"]
[Site "Europe Echecs"]

[Event "Sunway Sitges Chess Festival"]
[Date "2024.12.21"]
[White "Mannion, Stephen R"]
[Black "Arkell, Keith C"]
[WhiteElo "2139"]
[BlackElo "2355"]
[Round "4.29"]
[Result "1-0"]
[TimeControl "40/5400+30:1800+30"]

1. e4 {[%clk 1:30:57]} 1... c6 {[%clk 1:30:32]} 2. d4 {[%clk 1:31:21]} 2... d5
{[%clk 1:30:59]} 3. e5 {[%clk 1:31:44]} 3... Qc7 {[%clk 1:31:23]} 4. Bd3 {[%clk
1:30:14]} 4... c5 {[%clk 1:31:47]} 5. c3 {[%clk 1:30:34]} 5... Nc6 {[%clk
1:32:12]} 6. Ne2 {[%clk 1:30:49]} 6... g6 {[%clk 1:29:57]} 7. O-O {[%clk
1:30:29]} 7... Nh6 {[%clk 1:30:12]} 8. Bf4 {[%clk 1:27:54]} 8... Be6 {[%clk
1:28:53]} 9. dxc5 {[%clk 1:27:21]} 9... Nf5 {[%clk 1:26:03]} 10. g4 {[%clk
1:17:39]} 10... Ng7 {[%clk 1:23:32]} 11. Nd4 {[%clk 1:11:20]} 11... h5 {[%clk
1:23:01]} 12. g5 {[%clk 1:05:25]} 12... a6 {[%clk 1:15:42]} 13. Nd2 {[%clk
1:03:19]} 13... h4 {[%clk 1:12:21]} 14. b4 {[%clk 1:00:59]} 14... Bh3 {[%clk
0:57:40]} 15. Re1 {[%clk 0:58:32]} 15... Qd7 {[%clk 0:41:26]} 16. N2b3 {[%clk
0:56:55]} 16... Bg4 {[%clk 0:33:38]} 17. f3 {[%clk 0:53:06]} 17... Be6 {[%clk
0:33:44]} 18. a4 {[%clk 0:48:18]} 18... Nf5 {[%clk 0:31:41]} 19. Nxc6 {[%clk
0:28:55]} 19... bxc6 {[%clk 0:32:00]} 20. Nd4 {[%clk 0:29:16]} 20... Bg7 {[%clk
0:28:24]} 21. Qe2 {[%clk 0:27:02]} 21... Qb7 {[%clk 0:22:21]} 22. b5 {[%clk
0:23:23]} 22... Nxd4 {[%clk 0:22:17]} 23. cxd4 {[%clk 0:23:46]} 23... axb5
{[%clk 0:22:31]} 24. axb5 {[%clk 0:24:04]} 24... Rxa1 {[%clk 0:19:48]} 25. Rxa1
{[%clk 0:24:27]} 25... cxb5 {[%clk 0:19:50]} 26. c6 {[%clk 0:13:18]} 26... Qc8
{[%clk 0:20:04]} 27. Ra7 {[%clk 0:08:15]} 27... O-O {[%clk 0:20:21]} 28. c7
{[%clk 0:08:23]} 28... Bh3 {[%clk 0:18:33]} 29. Qc2 {[%clk 0:07:27]} 29... Qe6
{[%clk 0:18:12]} 30. Bxb5 {[%clk 0:07:15]} 30... Kh7 {[%clk 0:13:16]} 31. Ra6
{[%clk 0:05:18]} 31... Qc8 {[%clk 0:13:39]} 32. Rb6 {[%clk 0:05:10]} 32... Qa8
{[%clk 0:11:25]} 33. Ba6 {[%clk 0:05:27]} 33... Bc8 {[%clk 0:11:34]} 34. Qc6
{[%clk 0:04:39]} 34... Qa7 {[%clk 0:11:02]} 35. Be3 {[%clk 0:04:46]} 35... Bxe5
{[%clk 0:08:10]} 36. dxe5 {[%clk 0:05:09]} 36... Bxa6 {[%clk 0:08:36]} 37. Qa4
{[%clk 0:04:11]} 37... Ra8 {[%clk 0:07:28]} 38. Qxh4+ {[%clk 0:02:13]} 38... Kg8
{[%clk 0:07:14]} 39. Rxg6+ {[%clk 0:02:38]} 1-0

[Variant "Standard"]
[Site "Europe Echecs"]

[Event "Sunway Sitges Chess Festival"]
[Date "2024.12.21"]
[White "Dhruva Thota"]
[Black "Sijpkens, Michiel"]
[WhiteElo "2351"]
[BlackElo "2120"]
[Round "4.30"]
[Result "1-0"]
[TimeControl "40/5400+30:1800+30"]

1. e4 {[%clk 1:30:49]} 1... c6 {[%clk 1:21:41]} 2. d4 {[%clk 1:30:45]} 2... d5
{[%clk 1:22:08]} 3. e5 {[%clk 1:30:39]} 3... Bf5 {[%clk 1:22:21]} 4. Nf3 {[%clk
1:30:47]} 4... e6 {[%clk 1:22:41]} 5. Be2 {[%clk 1:30:25]} 5... Nd7 {[%clk
1:22:36]} 6. O-O {[%clk 1:30:14]} 6... Ne7 {[%clk 1:22:28]} 7. c3 {[%clk
1:30:15]} 7... h6 {[%clk 1:17:32]} 8. Na3 {[%clk 1:30:26]} 8... a6 {[%clk
1:10:44]} 9. Nc2 {[%clk 1:28:37]} 9... c5 {[%clk 1:09:52]} 10. dxc5 {[%clk
1:17:28]} 10... Nc6 {[%clk 1:08:52]} 11. b4 {[%clk 1:08:35]} 11... Qc7 {[%clk
1:00:50]} 12. Ncd4 {[%clk 1:00:18]} 12... Bg4 {[%clk 0:55:52]} 13. Bf4 {[%clk
0:56:25]} 13... g5 {[%clk 0:54:02]} 14. Bg3 {[%clk 0:48:54]} 14... Bxf3 {[%clk
0:53:47]} 15. Bxf3 {[%clk 0:48:44]} 15... Bg7 {[%clk 0:48:33]} 16. Bg4 {[%clk
0:27:50]} 16... Nf8 {[%clk 0:36:22]} 17. Nxc6 {[%clk 0:21:58]} 17... bxc6 {[%clk
0:36:36]} 18. Qe2 {[%clk 0:20:40]} 18... Nd7 {[%clk 0:35:24]} 19. Rae1 {[%clk
0:19:30]} 19... a5 {[%clk 0:33:47]} 20. f4 {[%clk 0:17:01]} 20... axb4 {[%clk
0:31:36]} 21. cxb4 {[%clk 0:17:21]} 21... gxf4 {[%clk 0:30:41]} 22. Bxf4 {[%clk
0:17:17]} 22... Rf8 {[%clk 0:24:54]} 23. Bh5 {[%clk 0:15:51]} 23... O-O-O {[%clk
0:24:57]} 24. Bg3 {[%clk 0:15:44]} 24... Nb8 {[%clk 0:23:38]} 25. Qg4 {[%clk
0:11:46]} 25... Bh8 {[%clk 0:23:52]} 26. Qd4 {[%clk 0:11:42]} 26... Qa7 {[%clk
0:22:38]} 27. a4 {[%clk 0:10:47]} 27... Rd7 {[%clk 0:20:56]} 28. b5 {[%clk
0:10:32]} 28... Rb7 {[%clk 0:20:09]} 29. Rb1 {[%clk 0:10:08]} 29... Qa5 {[%clk
0:18:44]} 30. b6 {[%clk 0:09:19]} 30... Nd7 {[%clk 0:18:05]} 31. Rbc1 {[%clk
0:06:52]} 31... f6 {[%clk 0:18:04]} 32. exf6 {[%clk 0:05:50]} 32... Rxf6 {[%clk
0:18:00]} 33. Qg4 {[%clk 0:05:23]} 33... Qd2 {[%clk 0:16:31]} 34. Qg8+ {[%clk
0:04:21]} 34... Nf8 {[%clk 0:16:48]} 35. Qxh8 {[%clk 0:03:32]} 35... Qd4+ {[%clk
0:16:40]} 36. Bf2 {[%clk 0:03:58]} 36... Qf4 {[%clk 0:15:18]} 37. Bg3 {[%clk
0:03:39]} 37... Qd4+ {[%clk 0:13:40]} 38. Rf2 {[%clk 0:04:00]} 38... Qe3 {[%clk
0:13:18]} 39. Qxf6 {[%clk 0:03:47]} 39... Qxc1+ {[%clk 0:13:42]} 40. Rf1 {[%clk
0:34:14]} 40... Qxc5+ {[%clk 0:43:31]} 41. Kh1 {[%clk 0:34:41]} 41... Rxb6
{[%clk 0:41:17]} 42. Bf2 {[%clk 0:34:18]} 42... Nd7 {[%clk 0:39:34]} 43. Qh8+
{[%clk 0:34:32]} 1-0

[Variant "Standard"]
[Site "Europe Echecs"]

[Event "Sunway Sitges Chess Festival"]
[Date "2024.12.21"]
[White "Alexiadis, Hristos"]
[Black "Koskinen, Henri"]
[WhiteElo "2341"]
[BlackElo "2118"]
[Round "4.31"]
[Result "1/2-1/2"]
[TimeControl "40/5400+30:1800+30"]

1. Nf3 {[%clk 1:27:58]} 1... d5 {[%clk 1:30:23]} 2. c4 {[%clk 1:24:22]} 2... e6
{[%clk 1:30:17]} 3. g3 {[%clk 1:24:47]} 3... Nf6 {[%clk 1:30:05]} 4. Bg2 {[%clk
1:23:41]} 4... dxc4 {[%clk 1:29:44]} 5. Qa4+ {[%clk 1:24:04]} 5... c6 {[%clk
1:29:03]} 6. Qxc4 {[%clk 1:24:28]} 6... b5 {[%clk 1:27:54]} 7. Qc2 {[%clk
1:24:43]} 7... Bb7 {[%clk 1:27:38]} 8. a4 {[%clk 1:25:06]} 8... Nbd7 {[%clk
1:23:51]} 9. O-O {[%clk 1:20:03]} 9... Rc8 {[%clk 1:20:13]} 10. Nc3 {[%clk
1:17:30]} 10... a6 {[%clk 1:17:44]} 11. Rd1 {[%clk 1:13:34]} 11... Qb6 {[%clk
1:07:55]} 12. d3 {[%clk 1:12:19]} 12... c5 {[%clk 0:54:29]} 13. axb5 {[%clk
1:08:58]} 13... axb5 {[%clk 0:54:42]} 14. e4 {[%clk 1:08:07]} 14... Be7 {[%clk
0:51:45]} 15. h3 {[%clk 1:03:20]} 15... O-O {[%clk 0:50:48]} 16. Be3 {[%clk
1:02:10]} 16... b4 {[%clk 0:34:31]} 17. Na4 {[%clk 0:58:41]} 17... Qb5 {[%clk
0:34:07]} 18. b3 {[%clk 0:58:17]} 18... Rfd8 {[%clk 0:32:56]} 19. Nb2 {[%clk
0:50:42]} 19... Nb8 {[%clk 0:32:30]} 20. Nc4 {[%clk 0:40:53]} 20... Nc6 {[%clk
0:31:52]} 21. d4 {[%clk 0:36:17]} 21... cxd4 {[%clk 0:27:42]} 22. Nxd4 {[%clk
0:36:39]} 22... Nxd4 {[%clk 0:27:55]} 23. Bxd4 {[%clk 0:37:03]} 23... Nd7 {[%clk
0:19:42]} 24. Qb2 {[%clk 0:30:03]} 24... Bf8 {[%clk 0:17:59]} 25. Ra5 {[%clk
0:21:46]} 25... Qc6 {[%clk 0:18:19]} 26. Rg5 {[%clk 0:21:44]} 26... e5 {[%clk
0:12:42]} 27. Bxe5 {[%clk 0:18:45]} 27... Nxe5 {[%clk 0:12:12]} 28. Rxd8 {[%clk
0:19:09]} 28... Rxd8 {[%clk 0:12:14]} 29. Rxe5 {[%clk 0:18:43]} 29... Qd7 {[%clk
0:09:52]} 30. Ra5 {[%clk 0:05:17]} 30... Qd1+ {[%clk 0:08:45]} 31. Kh2 {[%clk
0:05:21]} 31... Rd3 {[%clk 0:06:41]} 32. Ra7 {[%clk 0:05:07]} 32... Rxb3 {[%clk
0:06:42]} 33. Ne3 {[%clk 0:00:37]} 33... Rxb2 {[%clk 0:04:06]} 34. Nxd1 {[%clk
0:01:01]} 34... Rd2 {[%clk 0:04:31]} 35. Rxb7 {[%clk 0:01:27]} 35... Rxd1 {[%clk
0:04:57]} 36. e5 {[%clk 0:00:54]} 36... g6 {[%clk 0:04:46]} 37. Rb5 {[%clk
0:00:34]} 37... Be7 {[%clk 0:04:12]} 38. h4 {[%clk 0:00:38]} 38... h5 {[%clk
0:03:30]} 39. Bd5 {[%clk 0:00:50]} 39... Kf8 {[%clk 0:02:51]} 40. Kg2 {[%clk
0:30:54]} 40... Rc1 {[%clk 0:31:42]} 41. Rb8+ {[%clk 0:26:55]} 41... Kg7 {[%clk
0:32:07]} 42. Rb7 {[%clk 0:22:37]} 42... Kf8 {[%clk 0:32:31]} 43. Kf3 {[%clk
0:16:42]} 43... Rc2 {[%clk 0:31:15]} 44. Rb8+ {[%clk 0:15:20]} 44... Kg7 {[%clk
0:31:40]} 45. Rb7 {[%clk 0:14:06]} 45... Kf8 {[%clk 0:32:05]} 46. Rb8+ {[%clk
0:11:23]} 46... Kg7 {[%clk 0:32:34]} 47. Rb7 {[%clk 0:11:45]} 1/2-1/2

[Variant "Standard"]
[Site "Europe Echecs"]

[Event "Sunway Sitges Chess Festival"]
[Date "2024.12.21"]
[White "Banerjee, Supratit"]
[Black "Naoum, Spyridon"]
[WhiteElo "2116"]
[BlackElo "2338"]
[Round "4.32"]
[Result "1/2-1/2"]
[TimeControl "40/5400+30:1800+30"]

1. e4 {[%clk 1:30:56]} 1... c5 {[%clk 1:30:54]} 2. Nf3 {[%clk 1:31:18]} 2... d6
{[%clk 1:31:18]} 3. d4 {[%clk 1:31:43]} 3... cxd4 {[%clk 1:31:44]} 4. Nxd4
{[%clk 1:32:08]} 4... Nf6 {[%clk 1:32:10]} 5. Nc3 {[%clk 1:32:30]} 5... Nc6
{[%clk 1:32:33]} 6. Bc4 {[%clk 1:32:43]} 6... e6 {[%clk 1:32:26]} 7. Be3 {[%clk
1:32:55]} 7... a6 {[%clk 1:29:17]} 8. Qe2 {[%clk 1:26:31]} 8... Bd7 {[%clk
1:28:35]} 9. O-O-O {[%clk 1:22:04]} 9... b5 {[%clk 1:25:22]} 10. Bb3 {[%clk
1:20:25]} 10... Na5 {[%clk 1:22:17]} 11. f3 {[%clk 1:17:57]} 11... h5 {[%clk
1:14:37]} 12. Bg5 {[%clk 1:11:49]} 12... Be7 {[%clk 1:09:55]} 13. f4 {[%clk
1:10:34]} 13... Rc8 {[%clk 1:06:53]} 14. e5 {[%clk 0:50:57]} 14... dxe5 {[%clk
0:41:58]} 15. Bxf6 {[%clk 0:50:15]} 15... gxf6 {[%clk 0:31:09]} 16. fxe5 {[%clk
0:49:48]} 16... Nxb3+ {[%clk 0:31:31]} 17. Nxb3 {[%clk 0:46:12]} 17... f5 {[%clk
0:18:25]} 18. Rd4 {[%clk 0:43:58]} 18... Qc7 {[%clk 0:18:43]} 19. Rhd1 {[%clk
0:41:36]} 19... Bc6 {[%clk 0:19:13]} 20. a3 {[%clk 0:40:34]} 20... Kf8 {[%clk
0:19:11]} 21. Kb1 {[%clk 0:39:34]} 21... Be8 {[%clk 0:17:35]} 22. Rd6 {[%clk
0:36:53]} 22... a5 {[%clk 0:13:02]} 23. Nd4 {[%clk 0:34:01]} 23... Bxd6 {[%clk
0:11:09]} 24. Ncxb5 {[%clk 0:31:46]} 24... Qc4 {[%clk 0:03:51]} 25. Qxc4 {[%clk
0:30:21]} 25... Rxc4 {[%clk 0:04:20]} 26. Nxd6 {[%clk 0:30:41]} 26... Rc5 {[%clk
0:04:49]} 27. Nf3 {[%clk 0:30:46]} 27... Rg8 {[%clk 0:05:19]} 28. b4 {[%clk
0:25:22]} 28... axb4 {[%clk 0:03:35]} 29. axb4 {[%clk 0:25:45]} 29... Rc7 {[%clk
0:02:27]} 30. Rd2 {[%clk 0:24:55]} 30... Bc6 {[%clk 0:02:24]} 31. c4 {[%clk
0:24:52]} 31... Rg4 {[%clk 0:02:11]} 32. b5 {[%clk 0:24:32]} 32... Bxf3 {[%clk
0:01:37]} 33. gxf3 {[%clk 0:24:45]} 33... Rgxc4 {[%clk 0:01:59]} 34. Nxc4 {[%clk
0:25:08]} 34... Rxc4 {[%clk 0:02:28]} 35. b6 {[%clk 0:25:18]} 35... Rc8 {[%clk
0:01:05]} 36. b7 {[%clk 0:25:43]} 36... Rb8 {[%clk 0:01:35]} 37. Rd7 {[%clk
0:26:07]} 37... Kg7 {[%clk 0:01:26]} 38. f4 {[%clk 0:26:28]} 38... Kg6 {[%clk
0:01:50]} 39. Kc2 {[%clk 0:26:37]} 39... f6 {[%clk 0:02:18]} 40. exf6 {[%clk
0:56:19]} 40... Kxf6 {[%clk 0:32:48]} 41. Kd3 {[%clk 0:56:36]} 41... e5 {[%clk
0:33:15]} 42. fxe5+ {[%clk 0:56:08]} 42... Kxe5 {[%clk 0:32:58]} 43. Ke3 {[%clk
0:56:08]} 43... h4 {[%clk 0:24:38]} 44. Kf3 {[%clk 0:55:11]} 44... Ke6 {[%clk
0:24:46]} 45. Rh7 {[%clk 0:55:02]} 45... Ke5 {[%clk 0:25:13]} 46. h3 {[%clk
0:54:31]} 46... Kd6 {[%clk 0:24:00]} 47. Kf4 {[%clk 0:54:42]} 47... Kc6 {[%clk
0:24:28]} 48. Kxf5 {[%clk 0:54:50]} 48... Rxb7 {[%clk 0:24:57]} 49. Rxh4 {[%clk
0:54:59]} 49... Kd5 {[%clk 0:24:37]} 50. Rg4 {[%clk 0:55:16]} 50... Rb1 {[%clk
0:14:37]} 51. h4 {[%clk 0:55:35]} 51... Rh1 {[%clk 0:15:04]} 52. Ra4 {[%clk
0:55:31]} 52... Kd6 {[%clk 0:15:12]} 53. Kf6 {[%clk 0:55:54]} 53... Kd7 {[%clk
0:15:13]} 54. Re4 {[%clk 0:55:54]} 54... Rf1+ {[%clk 0:14:49]} 55. Kg6 {[%clk
0:56:03]} 55... Rg1+ {[%clk 0:15:16]} 56. Kh6 {[%clk 0:56:22]} 56... Kd6 {[%clk
0:14:13]} 57. h5 {[%clk 0:56:45]} 57... Kd7 {[%clk 0:14:36]} 58. Kh7 {[%clk
0:57:04]} 58... Rg2 {[%clk 0:15:01]} 59. Re5 {[%clk 0:57:07]} 59... Rg1 {[%clk
0:15:14]} 60. Kh6 {[%clk 0:56:57]} 60... Rg2 {[%clk 0:15:29]} 61. Kh7 {[%clk
0:57:17]} 61... Rg1 {[%clk 0:15:57]} 62. h6 {[%clk 0:57:34]} 62... Rg2 {[%clk
0:16:25]} 63. Ra5 {[%clk 0:57:56]} 63... Ke7 {[%clk 0:16:27]} 64. Kh8 {[%clk
0:57:16]} 64... Kf7 {[%clk 0:16:25]} 65. Ra7+ {[%clk 0:57:39]} 65... Kf8 {[%clk
0:16:39]} 66. Rg7 {[%clk 0:57:48]} 66... Rh2 {[%clk 0:16:42]} 67. Kh7 {[%clk
0:58:11]} 67... Rh3 {[%clk 0:16:27]} 68. Rg1 {[%clk 0:58:09]} 68... Rh2 {[%clk
0:12:28]} 69. Ra1 {[%clk 0:58:10]} 69... Rg2 {[%clk 0:12:40]} 70. Ra8+ {[%clk
0:58:23]} 70... Kf7 {[%clk 0:13:01]} 71. Kh8 {[%clk 0:58:38]} 71... Rh2 {[%clk
0:11:57]} 72. Ra7+ {[%clk 0:58:58]} 72... Kf8 {[%clk 0:12:11]} 73. h7 {[%clk
0:59:01]} 73... Rf2 {[%clk 0:12:06]} 74. Rb7 {[%clk 0:59:09]} 74... Rf1 {[%clk
0:12:31]} 75. Ra7 {[%clk 0:59:19]} 1/2-1/2

[Variant "Standard"]
[Site "Europe Echecs"]